fUST/lending_fUST_20241010
["ID","MTS","AMOUNT","RATE_DAILY","PERIOD"]
[340105909,1728557443573,-2615.39334646,0.00054784,8]
[340105910,1728557443651,-1000.0,0.00054784,8]
[340105911,1728557443697,-942.623054,0.00054784,8]
[340105918,1728557446644,-214.644,0.00049421,2]
[340105919,1728557446655,-7259.73590951,0.00054784,8]
[340105920,1728557448010,-3065.69079459,0.00054784,8]
[340105921,1728557448020,-500.0,0.00054793,120]
[340105922,1728557448030,-500.0,0.00054793,120]
[340105923,1728557448039,-500.0,0.00054793,120]
[340105924,1728557448049,-500.0,0.00054793,120]
[340105925,1728557448058,-500.0,0.00054793,120]
[340105926,1728557448067,-325.74697558,0.00054793,120]
[340105927,1728557448077,-2771.27,0.00054794,30]
[340105928,1728557448088,-2771.27,0.00054794,40]
[340105929,1728557448099,-2771.27,0.00054794,50]
[340105930,1728557448110,-2771.27,0.00054794,60]
[340105931,1728557448120,-2771.27,0.00054794,70]
[340105932,1728557448132,-2771.27,0.00054794,80]
[340105933,1728557448142,-2771.27,0.00054794,90]
[340105934,1728557448153,-2771.27,0.00054794,100]
[340105935,1728557448163,-74.05057893,0.00054794,110]
[340105936,1728557448250,-2074.766121,0.00054794,110]
[340105951,1728558385650,174.8,0.0003,2]
[340105952,1728558426137,-168.09435714,0.00032877,2]
[340105953,1728558426159,-179.705956,0.00034795,2]
[340105954,1728558426180,-328.91171486,0.00034849,120]
[340105955,1728558426202,-329.3477479,0.00038445,2]
[340105956,1728558426224,-1776.9319491,0.00038896,2]
[340105957,1728558426244,-300.0,0.00042999,30]
[340105958,1728558426265,-550.0,0.00042999,5]
[340105959,1728558426287,-1329.29302924,0.00043,120]
[340105991,1728558632684,-3415.430238,0.00043,120]
[340106007,1728558640667,-1450.0,0.00043,120]
[340106049,1728558960953,9825.2,0.0001,2]
[340106050,1728558960979,10000.0,0.0001,2]
[340106051,1728558961006,10000.0,0.0001,2]
[340106052,1728558961031,10000.0,0.0001,2]
[340106053,1728558961055,10000.0,0.0001,2]
[340106054,1728558961079,174.8,0.0001,2]
[340106063,1728559648149,-2727.0,0.00034,2]
[340106064,1728559648173,-163.120481,0.00034795,2]
[340106065,1728559648196,-1000.0,0.000374,30]
[340106066,1728559648225,-400.0,0.00038857,5]
[340106067,1728559648248,-2573.05983732,0.00038859,2]
[340106076,1728559720243,2121.153498,0.00023,2]
[340106095,1728559831766,-8417.19122791,0.00037685,2]
[340106141,1728559838178,-2935.64690513,0.00037685,2]
[340106142,1728559838190,-38646.50453479,0.00037685,2]
[340106143,1728559838201,-2519.7999147,0.00037744,2]
[340106144,1728559838212,-400.0,0.0003944,5]
[340106145,1728559838229,-4624.7984495,0.00039441,2]
[340106146,1728559838246,-1000.0,0.0004,14]
[340106147,1728559838258,-5417.579999,0.00043,120]
[340106148,1728559838268,-1000.0,0.00043,30]
[340106149,1728559838278,-188.385015,0.00044658,2]
[340106150,1728559838288,-340.0,0.00044658,2]
[340106151,1728559838298,-5417.58,0.00045,120]
[340106152,1728559838308,-515.33,0.0004599,10]
[340106153,1728559838318,-313.97188618,0.00045999,120]
[340106154,1728559838330,-13045.05020092,0.00046,120]
[340106168,1728559843627,-1061.7749785,0.00046,120]
[340106175,1728559845843,-1093.31480375,0.00046,120]
[340106176,1728559845973,-783.87335526,0.00046,120]
[340106191,1728560742160,-300.0,0.00029999,2]
[340106192,1728560742183,-300.0,0.00029999,2]
[340106193,1728560742207,-53006.87124868,0.0003,2]
[340106194,1728560778355,-300.0,0.00029999,2]
[340106195,1728560778381,-9700.0,0.0003,2]
[340106196,1728560851228,-170.0,0.00029999,2]
[340106197,1728560851253,-23349.82780288,0.0003,2]
[340106198,1728560851276,-157.81335813,0.0003,7]
[340106199,1728560851299,-2550.073303,0.00030079,2]
[340106200,1728560851322,-232.606825,0.00030179,2]
[340106201,1728560851343,-160.429638,0.00030499,2]
[340106202,1728560851367,-23570.8085793,0.00030667,2]
[340106203,1728560851390,-232.606825,0.00031752,2]
[340106204,1728560851413,-171.490383,0.00034795,2]
[340106205,1728560851437,-2550.07330293,0.00035983,2]
[340106206,1728560851460,-342.61089387,0.00041111,120]
[340106207,1728560851482,-1000.94858904,0.00041213,3]
[340106208,1728560851503,-2550.07330293,0.00041887,28]
[340106209,1728560851526,-5417.579999,0.00043,120]
[340106210,1728560851550,-1250.0,0.00043835,30]
[340106211,1728560851573,-400.0,0.00044658,2]
[340106212,1728560851595,-16108.0806409,0.0004499,6]
[340106213,1728560851618,-711.14209415,0.0004499,6]
[340106214,1728560851640,-1640.49926258,0.00045,120]
[340106217,1728560948246,-171.490383,0.00045014,120]
[340106218,1728560948278,-2500.0,0.00045205,30]
[340106219,1728560948301,-3750.0,0.00046575,30]
[340106220,1728560948323,-5417.579999,0.00047,120]
[340106221,1728560948345,-9766.07709709,0.0004777,10]
[340106222,1728560948368,-5000.0,0.00047945,30]
[340106223,1728560948396,-1593.79581434,0.000489,28]
[340106224,1728560948417,-5417.58,0.00049,120]
[340106225,1728560948440,-6250.0,0.00049315,120]
[340106226,1728560952076,150.0,0.000421,2]
[340106229,1728560957253,4695.06101221,0.00043,120]
[340106230,1728560959110,-722.51898679,0.00043,120]
[340106231,1728560959133,-495.25160613,0.00045,120]
[340106232,1728560970124,-4922.32839387,0.00045,120]
[340106233,1728561001996,1250.0,0.00043835,30]
[340106234,1728561002260,1744.23609129,0.00045205,30]
[340106235,1728561002290,755.76390871,0.00045205,30]
[340106236,1728561002561,3750.0,0.00046575,30]
[340106237,1728561002961,5000.0,0.00047945,30]
[340106238,1728561031050,3434.16707974,0.00048,120]
[340106287,1728561031921,-1543.08185825,0.00048,120]
[340106289,1728561031933,-40346.13210489,0.00048,120]
[340106306,1728561038139,-1147.8935824,0.00037744,2]
[340106307,1728561038150,-15409.83391369,0.00048,120]
[340106308,1728561038297,-21439.771705,0.00048,120]
[340106309,1728561038307,-6250.0,0.00049315,120]
[340106310,1728561038416,-251.557,0.00049421,2]
[340106311,1728561038432,-400.0,0.00049517,2]
[340106312,1728561038442,-152.372,0.00050506,120]
[340106313,1728561038454,-526.0,0.00050506,120]
[340106314,1728561038465,-720.44563516,0.00050506,120]
[340106315,1728561038477,-498.55436484,0.00050506,120]
[340106316,1728561038486,-577.095,0.00050506,2]
[340106317,1728561038496,-7500.0,0.00050684,120]
[340106318,1728561038507,-15302.6766088,0.00050789,7]
[340106319,1728561038517,-37339.86549418,0.00050789,7]
[340106323,1728561040131,-635.09,0.00050789,7]
[340106332,1728561043060,-1755.6565995,0.00050789,7]
[340106333,1728561043072,-1028.9275,0.00050789,7]
[340106334,1728561043122,-4682.44022272,0.00050789,7]
[340106335,1728561043131,-429.44,0.00050789,10]
[340106336,1728561043141,-357.87,0.00050789,10]
[340106337,1728561043150,-277.90789644,0.00050798,120]
[340106338,1728561043159,-500.0,0.00050798,120]
[340106339,1728561043171,-183.81542163,0.00050798,120]
[340106340,1728561043180,-500.0,0.00050798,120]
[340106341,1728561043189,-3018.14193184,0.00050799,120]
[340106342,1728561043201,-458.78112095,0.00050799,120]
[340106373,1728561527664,350.0,0.00029,2]
[340106376,1728561733187,5000.0,0.00029,2]
[340106377,1728561741457,4650.0,0.00029,2]
[340106378,1728561763704,5000.0,0.00028,2]
[340106379,1728561779324,5000.0,0.00028,2]
[340106380,1728561794390,5000.0,0.00027,2]
[340106381,1728561809942,5000.0,0.00027,2]
[340106382,1728561839706,5000.0,0.00026,2]
[340106383,1728561854884,5000.0,0.00026,2]
[340106384,1728561870511,5000.0,0.00025,2]
[340106385,1728561886721,2704.046502,0.00025,2]
[340106386,1728561923289,5000.0,0.00024,2]
[340106388,1728561938781,5000.0,0.00024,2]
[340106389,1728561954313,366.11862513,0.00023,2]
[340106390,1728561956169,-2295.953498,0.00025,2]
[340106391,1728561956190,-166.049421,0.00034795,2]
[340106392,1728561956211,-250.0,0.00037744,2]
[340106393,1728561956232,-205.9469013,0.00040949,2]
[340106394,1728561956253,-166.049421,0.00041607,120]
[340106395,1728561956274,-303.8063739,0.00041727,2]
[340106396,1728561956296,-150.0,0.000421,2]
[340106397,1728561956317,-550.0,0.00042998,30]
[340106398,1728561956339,-1902.20057377,0.00043,120]
[340106400,1728561962155,5000.0,0.00023,2]
[340106401,1728561978119,4633.88137487,0.00023,2]
[340106404,1728562045124,-328.08231518,0.00023,2]
[340106405,1728562045165,-38.03630995,0.00023,2]
[340106406,1728562045194,-1490.78883011,0.00043,120]
[340106407,1728562053514,5000.0,0.00022,2]
[340106408,1728562068870,5000.0,0.00022,2]
[340106409,1728562084302,2717.02738519,0.00021022,2]
[340106410,1728562155157,-5417.579999,0.00043,120]
[340106411,1728562155180,-400.0,0.00044658,2]
[340106412,1728562155206,-193.315764,0.00044658,2]
[340106413,1728562155229,-150.0,0.00044999,30]
[340106414,1728562155252,-5417.58,0.00045,120]
[340106415,1728562155275,-5417.579999,0.00047,120]
[340106416,1728562155299,-155.0,0.00047,90]
[340106417,1728562155321,-166.049421,0.0004842,120]
[340106418,1728562155344,-155.0,0.00048904,90]
[340106419,1728562155372,-5264.57161517,0.00049,120]
[340106420,1728562156096,-153.00838483,0.00049,120]
[340106421,1728562179003,150.0,0.000421,2]
[340106442,1728562232181,166.049421,0.00034795,2]
[340106445,1728562232195,-400.0,0.00049517,2]
[340106447,1728562232206,-193.315764,0.00049517,2]
[340106449,1728562232219,-209.8716294,0.00049863,30]
[340106451,1728562232230,-209.8716294,0.00049863,30]
[340106454,1728562232240,-209.8716294,0.00049863,30]
[340106456,1728562232249,-209.8716294,0.00049863,30]
[340106458,1728562232259,-1013.79621277,0.0005,60]
[340106465,1728562232536,166.049421,0.0004331,120]
[340106473,1728562238524,-69079.20378723,0.0005,60]
[340106474,1728562238534,-177.458465,0.000507,2]
[340106475,1728562238544,-1734.69828182,0.00050848,28]
[340106476,1728562238558,-1250.0,0.00050899,120]
[340106477,1728562238569,-298.22,0.00050948,10]
[340106478,1728562238581,-248.52,0.00050948,10]
[340106479,1728562238593,-6201.19780662,0.00050948,7]
[340106490,1728562243562,-24.85246108,0.00050948,10]
[340106491,1728562243654,-182.24753892,0.00050948,10]
[340106492,1728562243665,-5483.9921593,0.00050948,7]
[340106497,1728562246252,-12484.88,0.00050948,7]
[340106498,1728562246474,-61.10685901,0.00050948,7]
[340106502,1728562247528,155.0,0.00047,90]
[340106503,1728562247905,155.0,0.00048904,90]
[340106508,1728563147107,-166.049421,0.00034795,2]
[340106509,1728563147128,-150.0,0.000421,2]
[340106510,1728563147149,-5417.579999,0.00043,120]
[340106511,1728563147170,-380.0,0.00044658,2]
[340106512,1728563147191,-5417.58,0.00045,120]
[340106513,1728563147215,-166.049421,0.00045014,120]
[340106514,1728563147236,-207.582925,0.00046402,30]
[340106515,1728563147257,-207.582925,0.00046982,30]
[340106516,1728563147278,-5417.579999,0.00047,120]
[340106517,1728563147300,-155.0,0.00047,90]
[340106518,1728563147321,-207.582925,0.00047562,30]
[340106519,1728563147342,-207.582925,0.00048142,30]
[340106520,1728563147363,-207.582925,0.00048722,30]
[340106521,1728563147385,-380.0,0.00049517,2]
[340106522,1728563147410,-2200.0,0.0005,30]
[340106523,1728563147433,-2774.91244867,0.00050699,120]
[340106524,1728563147455,-5417.58,0.000507,120]
[340106525,1728563147477,-168.09463702,0.0005078,2]
[340106526,1728563147497,-172.58,0.0005088,10]
[340106527,1728563147518,-862.93,0.0005088,10]
[340106528,1728563147538,-189.29413335,0.0005088,120]
[340106529,1728563147560,-15069.8372769,0.0005088,7]
[340106530,1728563147582,-20829.67281141,0.0005088,7]
[340106531,1728563147612,-647.61188959,0.0005088,7]
[340106532,1728563147634,-754.05304074,0.00050889,120]
[340106533,1728563147655,-500.0,0.00050889,120]
[340106534,1728563147675,-413.7197109,0.00050889,120]
[340106535,1728563147696,-500.0,0.00050889,120]
[340106536,1728563147716,-500.0,0.00050889,120]
[340106537,1728563147736,-500.0,0.00050889,120]
[340106538,1728563147758,-500.0,0.00050889,120]
[340106539,1728563147779,-500.0,0.00050889,120]
[340106540,1728563147802,-500.0,0.00050889,120]
[340106541,1728563147826,-500.0,0.00050889,120]
[340106542,1728563147847,-500.0,0.00050889,120]
[340106543,1728563147869,-500.0,0.00050889,120]
[340106544,1728563147890,-500.0,0.00050889,120]
[340106545,1728563147911,-500.0,0.00050889,120]
[340106546,1728563147932,-500.0,0.00050889,120]
[340106547,1728563147954,-500.0,0.00050889,120]
[340106548,1728563147975,-500.0,0.00050889,120]
[340106549,1728563147996,-500.0,0.00050889,120]
[340106550,1728563148017,-500.0,0.00050889,120]
[340106551,1728563148039,-500.0,0.00050889,120]
[340106552,1728563148060,-500.0,0.00050889,120]
[340106553,1728563148081,-500.0,0.00050889,120]
[340106554,1728563148102,-500.0,0.00050889,120]
[340106555,1728563148123,-500.0,0.00050889,120]
[340106556,1728563148145,-500.0,0.00050889,120]
[340106557,1728563148166,-500.0,0.00050889,120]
[340106558,1728563148188,-500.0,0.00050889,120]
[340106559,1728563148211,-500.0,0.00050889,120]
[340106560,1728563148233,-500.0,0.00050889,120]
[340106561,1728563148255,-500.0,0.00050889,120]
[340106562,1728563148277,-500.0,0.00050889,120]
[340106563,1728563148299,-500.0,0.00050889,120]
[340106564,1728563148323,-642.12286043,0.00050889,120]
[340106565,1728563148346,-500.0,0.00050889,120]
[340106566,1728563148368,-500.0,0.00050889,120]
[340106567,1728563148393,-500.0,0.00050889,120]
[340106568,1728563148416,-500.0,0.00050889,120]
[340106569,1728563148439,-500.0,0.00050889,120]
[340106570,1728563148462,-500.0,0.00050889,120]
[340106571,1728563148487,-500.0,0.00050889,120]
[340106572,1728563148510,-500.0,0.00050889,120]
[340106573,1728563148532,-500.0,0.00050889,120]
[340106574,1728563148555,-500.0,0.00050889,120]
[340106575,1728563148577,-500.0,0.00050889,120]
[340106576,1728563148598,-500.0,0.00050889,120]
[340106577,1728563148621,-500.0,0.00050889,120]
[340106578,1728563148643,-500.0,0.00050889,120]
[340106579,1728563148665,-500.0,0.00050889,120]
[340106580,1728563148686,-500.0,0.00050889,120]
[340106581,1728563148707,-500.0,0.00050889,120]
[340106582,1728563148731,-500.0,0.00050889,120]
[340106583,1728563148755,-500.0,0.00050889,120]
[340106584,1728563148777,-300.0,0.00050889,120]
[340106585,1728563148799,-500.0,0.00050889,120]
[340106586,1728563148827,-22440.80138342,0.0005089,120]
[340106590,1728563254198,-173.984187,0.00044658,2]
[340106591,1728563254234,-173.984187,0.00049517,2]
[340106592,1728563254258,-155.88104996,0.00050798,28]
[340106594,1728563317217,6923.68100968,0.00021,60]
[340106611,1728563360521,3723.46,0.00045,120]
[340106612,1728563361160,1941.21883151,0.00047,120]
[340106613,1728563364134,-3476.36116749,0.00047,120]
[340106617,1728563398302,150.0,0.000433,2]
[340106618,1728563406994,166.049421,0.00034795,2]
[340106619,1728563407642,166.049421,0.00047568,120]
[340106623,1728563427198,12239.89905409,0.00045,120]
[340106624,1728563427220,4949.41840363,0.00045,120]
[340106681,1728563438983,-70128.42988176,0.00045,120]
[340106690,1728563443604,-7374.73941915,0.00045,120]
[340106691,1728563443621,-476.12522042,0.00045,120]
[340106699,1728563446358,-2131.62447909,0.00045,120]
[340106705,1728564062404,-1103.9,0.00045,120]
[340106706,1728564338167,-166.049421,0.00034795,2]
[340106707,1728564338188,-443.54896432,0.00037331,2]
[340106708,1728564338208,-158.0,0.00039582,4]
[340106709,1728564338228,-150.0,0.000433,2]
[340106710,1728564338252,-362.0,0.00044658,2]
[340106711,1728564338392,-164.827124,0.00044658,2]
[340106712,1728564338416,-237.86354186,0.00045,120]
[340106713,1728564338439,-158.0,0.0004576,14]
[340106714,1728564338461,-191.333,0.0004614,120]
[340106715,1728564338482,-191.333,0.0004614,120]
[340106716,1728564338502,-191.334,0.0004614,120]
[340106717,1728564338523,-300.0,0.00046997,30]
[340106718,1728564338546,-300.0,0.00046997,5]
[340106719,1728564338568,-152.0,0.00047,120]
[340106720,1728564338588,-200.0,0.00048,120]
[340106721,1728564338608,-158.0,0.0004874,14]
[340106722,1728564338629,-362.0,0.00049517,2]
[340106723,1728564338651,-164.827124,0.00049787,2]
[340106724,1728564338673,-4147.47256668,0.0004986,28]
[340106725,1728564338693,-168.09463702,0.00049889,2]
[340106726,1728564338716,-76031.37280596,0.000499,120]
[340106727,1728564443111,-309.11247119,0.000499,120]
[340106730,1728564556119,-166.049421,0.00034795,2]
[340106731,1728564565164,-4543.04,0.00047,120]
[340106735,1728564615625,150.0,0.000433,2]
[340106793,1728564632471,-617.88065062,0.00049869,28]
[340106794,1728564632482,-3011.15784519,0.00049869,28]
[340106795,1728564632492,-12547.51472285,0.000499,120]
[340106796,1728564632501,-18601.4070209,0.00049969,7]
[340106797,1728564632511,-1137.81789607,0.00049969,7]
[340106798,1728564632520,-37202.8140419,0.0004997,7]
[340106799,1728564632530,-2275.63579214,0.0004997,7]
[340106800,1728564632539,-151.717064,0.0004998,2]
[340106801,1728564632549,-18601.4070209,0.0004998,7]
[340106802,1728564632559,-1137.81789607,0.0004998,7]
[340106803,1728564632568,-500.0,0.00049989,120]
[340106804,1728564632577,-312.71069895,0.00049989,120]
[340106805,1728564632590,-187.28930105,0.00049989,120]
[340106806,1728564632599,-239.6928547,0.00049989,120]
[340106807,1728564632611,-260.3071453,0.00049989,120]
[340106808,1728564632621,-59.6928547,0.00049989,120]
[340106820,1728564638685,-346.70183562,0.00049989,120]
[340106821,1728564638695,-500.0,0.00049989,120]
[340106822,1728564638705,-424.58255,0.00049989,120]
[340106823,1728564638715,-500.0,0.00049989,120]
[340106824,1728564638725,-500.0,0.00049989,120]
[340106825,1728564638735,-500.0,0.00049989,120]
[340106826,1728564638744,-500.0,0.00049989,120]
[340106827,1728564638754,-500.0,0.00049989,120]
[340106828,1728564638763,-500.0,0.00049989,120]
[340106829,1728564638773,-546.74,0.00049989,10]
[340106830,1728564638783,-151.350306,0.0004999,120]
[340106831,1728564638792,-13449.86344597,0.0004999,7]
[340106832,1728564639085,-9377.56179832,0.0004999,7]
[340106833,1728564639148,-3950.7005332,0.0004999,7]
[340106834,1728564639161,-12998.15801846,0.0004999,7]
[340106835,1728564639172,-3310.84238111,0.0004999,7]
[340106842,1728564640698,-632.99946638,0.0004999,7]
[340106843,1728564640710,-584.60456064,0.0004999,7]
[340106844,1728564640722,-5270.01570441,0.0004999,7]
[340106852,1728564643578,-3617.01229832,0.0004999,7]
[340106853,1728564643766,-1.50794162,0.0004999,7]
[340106855,1728564643777,-21212.36193527,0.0004999,7]
[340106857,1728564643787,-4551.27158428,0.0004999,7]
[340106859,1728564643796,-500.0,0.00049999,120]
[340106860,1728564643805,-280.1958385,0.00049999,31]
[340106861,1728564643818,-193.12281473,0.00049999,120]
[340106862,1728564643827,-781.57752408,0.00049999,120]
[340106863,1728564643839,-381.71231224,0.00049999,120]
[340106864,1728564643851,-781.57752408,0.00049999,120]
[340106865,1728564643861,-444.45763353,0.00049999,120]
[340106866,1728564643870,-781.57752408,0.00049999,120]
[340106867,1728564643879,-781.57752408,0.00049999,120]
[340106868,1728564643888,-781.57752408,0.00049999,120]
[340106869,1728564643899,-781.57752408,0.00049999,120]
[340106870,1728564643909,-500.0,0.00049999,120]
[340106871,1728564643919,-781.57752408,0.00049999,120]
[340106872,1728564643929,-781.57752408,0.00049999,120]
[340106873,1728564643939,-781.57752408,0.00049999,120]
[340106874,1728564643948,-781.57752408,0.00049999,120]
[340106875,1728564643958,-781.57752408,0.00049999,120]
[340106876,1728564643967,-781.57752408,0.00049999,120]
[340106877,1728564643976,-781.57752408,0.00049999,120]
[340106878,1728564643986,-781.57752408,0.00049999,120]
[340106879,1728564643999,-781.57752408,0.00049999,120]
[340106880,1728564644009,-781.57752408,0.00049999,120]
[340106881,1728564644019,-781.57752408,0.00049999,120]
[340106882,1728564644028,-788.68277431,0.00049999,120]
[340106883,1728564644038,-788.68277431,0.00049999,120]
[340106884,1728564644047,-788.68277431,0.00049999,120]
[340106885,1728564644058,-788.68277431,0.00049999,120]
[340106886,1728564644068,-788.68277431,0.00049999,120]
[340106887,1728564644077,-788.68277431,0.00049999,120]
[340106888,1728564644086,-788.68277431,0.00049999,120]
[340106889,1728564644095,-788.68277431,0.00049999,120]
[340106890,1728564644104,-788.68277431,0.00049999,120]
[340106891,1728564644114,-858.45086589,0.00049999,120]
[340106892,1728564644124,-858.45086589,0.00049999,120]
[340106893,1728564644132,-858.45086589,0.00049999,120]
[340106894,1728564644141,-167602.0,0.0005,120]
[340106895,1728564644150,-5417.58,0.000507,120]
[340106896,1728564644160,-177.458465,0.000509,2]
[340106897,1728564644169,-33144.64273047,0.00050947,30]
[340106898,1728564644180,-6555.0,0.00050947,30]
[340106904,1728564693583,325.8,0.00044658,2]
[340106909,1728565632153,-166.049421,0.00034795,2]
[340106910,1728565632176,-188.3621468,0.00038762,2]
[340106911,1728565632197,-400.0,0.0004,30]
[340106912,1728565632218,-170.4651225,0.00040706,2]
[340106913,1728565632240,-164.827124,0.00044658,2]
[340106914,1728565632261,-180.05,0.000451,2]
[340106915,1728565632283,-152.0,0.00047,120]
[340106916,1728565632307,-325.8,0.00049517,2]
[340106917,1728565632328,-711.81199683,0.0005,60]
[340106918,1728565632349,-164.827124,0.00050428,2]
[340106919,1728565632370,-300.0,0.00050599,120]
[340106920,1728565632395,-6498.04090032,0.000506,120]
[340106921,1728565639141,-4525.94676937,0.000506,120]
[340106984,1728565846794,-502.88297437,0.00049999,30]
[340106985,1728565847694,158.0,0.00048,90]
[340106986,1728565859302,1000.0,0.00034994,2]
[340106987,1728565859330,1000.0,0.00035129,2]
[340106988,1728565859360,1000.0,0.00035209,2]
[340106989,1728565859387,1000.0,0.00035111,2]
[340106990,1728565859429,1000.0,0.00035082,2]
[340106991,1728565859495,409.0535511,0.00035084,2]
[340106992,1728565859521,590.9464489,0.00035084,2]
[340106993,1728565859689,1000.0,0.00035135,2]
[340106994,1728565862253,2000.0,0.0003,2]
[340106995,1728565886537,400.0,0.00044658,2]
[340106996,1728565916418,1229.29429487,0.0003,2]
[340106997,1728565916440,1836.70570513,0.0003,2]
[340107000,1728566281997,1000.0,0.00026,2]
[340107002,1728566484981,9000.0,0.0003,4]
[340107005,1728566615474,1000.0,0.00029,2]
[340107012,1728566738160,-284.57830613,0.000295,2]
[340107014,1728566830147,-715.42169387,0.000295,2]
[340107015,1728566830172,-485.47027261,0.0003,2]
[340107016,1728566843101,-514.52972739,0.0003,2]
[340107017,1728566843121,-826.82437342,0.00031,2]
[340107032,1728566949318,-173.17562658,0.00031,2]
[340107033,1728566949340,-1000.0,0.00032,2]
[340107034,1728566949364,-1000.0,0.00033,2]
[340107035,1728566949388,-300.0,0.00034085,2]
[340107036,1728566949411,-3000.0,0.00034086,2]
[340107037,1728566949433,-166.049421,0.00034795,2]
[340107038,1728566949457,-300.0,0.00035259,2]
[340107039,1728566949480,-332.0672175,0.00037744,2]
[340107040,1728566949508,-168.403444,0.00044658,2]
[340107041,1728566949531,-388.699209,0.00044658,2]
[340107042,1728566949555,-152.0,0.00045,120]
[340107046,1728566969111,-155.0,0.00047,90]
[340107047,1728566969132,-3591.27257912,0.0004869,28]
[340107048,1728566969153,-11689.8113245,0.0004879,7]
[340107049,1728566969175,-29004.42107639,0.0004879,7]
[340107050,1728566970247,-955.15554941,0.0004879,7]
[340107051,1728566970268,-182.25,0.0004879,10]
[340107052,1728566970288,-547.17583889,0.00048799,120]
[340107053,1728566970308,-84067.65093328,0.000488,30]
[340107131,1728567043110,-3075.21836128,0.000488,30]
[340107132,1728567043122,-568.05122152,0.000488,30]
[340107139,1728567046094,-133.43244072,0.000488,30]
[340107140,1728567095126,5559.8205668,0.00040468,2]
[340107141,1728567095147,3491.47529492,0.00040468,2]
[340107142,1728567095169,1217.77059292,0.00040468,2]
[340107143,1728567095191,5408.88548514,0.00040468,2]
[340107183,1728567944171,-227.55821149,0.00034695,2]
[340107184,1728568033172,-210.39938321,0.00034695,2]
[340107185,1728568033194,-166.049421,0.00034795,2]
[340107186,1728568033218,-167.934322,0.00036683,2]
[340107187,1728568033242,-400.0,0.0003692,2]
[340107188,1728568033266,-6.00645697,0.0003692,2]
[340107189,1728568047351,-393.99354303,0.0003692,2]
[340107190,1728568047380,-11280.4867631,0.00036921,2]
[340107191,1728568047404,-157.646111,0.00037065,2]
[340107192,1728568047431,-157.646111,0.00037167,2]
[340107193,1728568047453,-6288.3606686,0.00037254,2]
[340107194,1728568047475,-465.11534141,0.00037257,2]
[340107195,1728568047497,-157.646111,0.00037268,2]
[340107196,1728568047519,-157.646111,0.0003737,2]
[340107197,1728568047542,-157.646111,0.00037472,2]
[340107198,1728568047565,-157.646111,0.00037573,2]
[340107199,1728568047590,-157.646111,0.00037675,2]
[340107200,1728568047614,-157.646111,0.00037777,2]
[340107201,1728568047636,-157.646111,0.00037878,2]
[340107202,1728568047659,-157.646111,0.0003798,2]
[340107203,1728568047682,-157.646111,0.00038082,2]
[340107204,1728568047705,-157.646111,0.00038183,2]
[340107205,1728568047733,-157.646111,0.00038285,2]
[340107206,1728568047756,-157.646111,0.00038387,2]
[340107207,1728568047778,-157.646111,0.00038488,2]
[340107208,1728568047800,-157.646111,0.0003859,2]
[340107209,1728568047821,-157.646111,0.00038691,2]
[340107210,1728568047845,-157.646111,0.00038793,2]
[340107211,1728568047868,-167.14423073,0.00038831,52]
[340107212,1728568047890,-157.646111,0.00038895,2]
[340107213,1728568047912,-157.646111,0.00038996,2]
[340107214,1728568047936,-531.0,0.00039508,5]
[340107215,1728568047958,-311.63117427,0.00040468,30]
[340107216,1728568047979,-560.0,0.00040612,30]
[340107217,1728568048001,-17995.20246607,0.000412,120]
[340107218,1728568048024,-3526.3625689,0.000429,28]
[340107219,1728568048045,-1313.88,0.00043,120]